bitfinex/quotes_ETHUSD_20241109
["timestamp","ask_amount","ask_price","bid_price","bid_amount"]
[1731166072856,0.7919,3036.2,3035.9,0.19893109]
[1731166073041,0.7919,3036.2,3035.8,0.19901659]
[1731166073240,0.7919,3036.2,3036.0,0.19884561]
[1731166073417,0.7919,3036.2,3035.9,0.19893109]
[1731166073619,0.7919,3036.2,3036.1,0.19876012]
[1731166073823,0.7919,3036.2,3036.0,0.19884561]
[1731166074160,0.7919,3036.2,3036.1,0.19876012]
[1731166074539,0.7919,3036.2,3035.7,1.43149001]
[1731166074741,0.7919,3036.2,3035.8,0.37312486]
[1731166074933,0.00893266,3036.5,3035.8,0.37312486]
[1731166075263,0.81423266,3036.5,3035.8,0.37312486]
[1731166080275,0.8053,3036.1,3035.8,0.19901659]
[1731166080569,0.8053,3036.1,3035.6,0.30959267]
[1731166080772,0.8053,3036.1,3035.9,0.19893109]
[1731166081071,0.8053,3036.1,3035.6,1.3308593]
[1731166081371,0.8053,3036.5,3036.0,1.26498249]
[1731166081576,0.8053,3036.5,3035.9,0.0905]
[1731166081731,0.8053,3036.5,3036.1,0.19876012]
[1731166081931,0.8053,3036.5,3035.9,0.0905]
[1731166082133,0.8053,3036.5,3036.0,0.19884561]
[1731166085679,0.7616,3036.7,3036.2,1.26498249]
[1731166085849,0.7616,3036.9,3036.3,0.0905]
[1731166086050,0.7616,3036.9,3036.3,0.35495054]
[1731166086367,0.7616,3036.9,3036.3,0.15636137]
[1731166087350,0.7616,3036.9,3036.4,1.26498249]
[1731166087551,0.7616,3036.9,3036.5,0.26427656]
[1731166088270,0.7616,3036.9,3036.5,0.19841825]
[1731166088854,0.01,3037.0,3036.6,1.26498249]
[1731166089269,0.01,3037.0,3036.7,0.19824734]
[1731166090172,0.7616,3037.1,3036.7,0.19824734]
[1731166091695,0.035,3037.2,3036.8,1.26498249]
[1731166092054,0.035,3037.2,3036.9,0.19807646]
[1731166092456,0.035,3037.2,3036.7,0.0905]
[1731166092656,0.035,3037.2,3037.0,0.19799103]
[1731166092986,0.035,3037.2,3037.1,0.1979056]
[1731166093373,0.035,3037.2,3036.7,0.0905]
[1731166093725,0.7708,3037.0,3036.4,0.0905]
[1731166094967,0.01,3037.1,3036.7,1.26498249]
[1731166095319,0.01,3037.1,3036.8,0.0905]
[1731166098206,0.03334,3037.2,3036.9,0.17282989]
[1731166098698,0.03334,3037.2,3036.9,1.50366184]
[1731166099101,0.03334,3037.2,3037.0,0.19799103]
[1731166099324,0.03334,3037.2,3037.1,0.06584788]
[1731166099528,0.03334,3037.2,3037.1,0.17016513]
[1731166099846,0.03334,3037.2,3037.1,0.36807073]
[1731166102703,0.03334,3037.2,3037.1,0.1979056]
[1731166102938,0.03334,3037.2,3036.9,1.43781238]
[1731166103241,0.03334,3037.2,3037.0,0.1980429]
[1731166108772,0.03334,3037.2,3037.1,1.26498249]
[1731166109173,0.03334,3037.2,3037.1,1.46293996]
[1731166109763,0.03334,3037.2,3037.1,1.63310143]
[1731166112099,0.03334,3037.2,3037.1,0.36811894]
[1731166113762,0.03334,3037.2,3037.1,0.19795747]
[1731166113967,0.03334,3037.2,3036.8,1.35548249]
[1731166114191,0.03334,3037.2,3036.9,0.19812833]
[1731166114806,0.03334,3037.2,3037.0,1.26498249]
[1731166115507,0.03334,3037.2,3037.1,0.19795747]
[1731166117497,0.03334,3037.2,3036.8,1.66010098]
[1731166117807,0.03334,3037.2,3036.9,0.1660101]
[1731166118098,0.03334,3037.2,3036.9,0.36413843]
[1731166119205,0.84044,3037.2,3036.9,0.36413843]
[1731166126641,0.03334,3037.2,3036.9,0.36413843]
[1731166128026,0.03334,3037.2,3037.0,1.26498249]
[1731166128243,0.03334,3037.2,3037.1,0.46291209]
[1731166128426,0.03334,3037.2,3037.1,0.66086956]
[1731166128630,0.03334,3037.2,3037.1,0.19795747]
[1731166138575,0.03334,3037.2,3037.1,0.26380416]
[1731166139980,0.03334,3037.2,3037.1,0.19795747]
[1731166164431,0.03334,3037.2,3037.1,0.26380284]
[1731166164616,0.03334,3037.2,3037.1,0.26379967]
[1731166164929,0.03334,3037.2,3037.1,0.44232843]
[1731166165226,0.8058,3037.9,3037.1,0.44232843]
[1731166165436,0.8058,3037.9,3037.7,1.26498249]
[1731166166119,0.8058,3037.9,3037.8,0.19746334]
[1731166166294,0.8058,3037.9,3037.7,1.26498249]
[1731166166491,0.8058,3037.9,3037.8,0.19746334]
[1731166166950,0.8058,3037.9,3037.7,1.26498249]
[1731166167094,0.8058,3037.9,3037.8,0.19746334]
[1731166167434,0.8058,3037.9,3037.7,1.26498249]
[1731166167768,0.81473266,3037.9,3037.8,0.19746334]
[1731166168197,0.81473266,3037.9,3037.7,1.26498249]
[1731166168526,0.81473266,3037.9,3037.8,0.19746334]
[1731166168906,0.81473266,3037.9,3037.7,1.26498249]
[1731166169826,0.81473266,3037.9,3037.8,0.19746334]
[1731166170209,0.81473266,3037.9,3037.7,1.26498249]
[1731166170404,0.81473266,3037.9,3037.8,0.19746334]
[1731166170706,0.81473266,3037.9,3037.7,1.26498249]
[1731166170903,0.81473266,3037.9,3037.8,0.19746334]
[1731166171122,0.81473266,3037.9,3037.7,1.26498249]
[1731166171330,0.81473266,3037.9,3037.8,0.19746334]
[1731166171619,0.81473266,3037.9,3037.7,1.26498249]
[1731166171933,0.81473266,3037.9,3037.8,0.19746334]
[1731166172297,0.81473266,3037.9,3037.7,1.26498249]
[1731166172635,0.81473266,3037.9,3037.8,0.19746334]
[1731166173138,0.81473266,3037.9,3037.5,1.56430817]
[1731166173304,0.81473266,3037.9,3037.4,0.0905]
[1731166173491,0.81473266,3037.9,3037.6,0.19763413]
[1731166173694,0.81473266,3037.9,3037.5,1.46270203]
[1731166173933,0.81473266,3037.9,3037.7,0.19754873]
[1731166174140,0.81473266,3037.9,3037.6,0.19763413]
[1731166174344,0.81473266,3037.9,3037.8,0.19746334]
[1731166174545,0.81473266,3037.9,3037.7,0.19754873]
[1731166174710,0.00893266,3037.5,3037.0,1.60824575]
[1731166175031,0.8253,3037.4,3037.0,1.60824575]
[1731166175211,0.8253,3037.4,3037.1,1.26498249]
[1731166175405,0.8253,3037.4,3037.1,1.45568406]
[1731166176199,0.00893266,3037.7,3037.3,1.26498249]
[1731166178407,0.8141,3037.6,3037.3,1.26498249]
[1731166188060,0.8141,3037.6,3037.1,1.79875826]
[1731166188061,0.00893266,3037.5,3037.1,1.79875826]
[1731166188912,0.00893266,3037.5,3037.2,0.19797578]
[1731166190255,0.00893266,3037.5,3037.3,1.26498249]
[1731166190455,0.00893266,3037.5,3037.4,0.19780495]
[1731166190867,0.80823266,3037.5,3037.4,0.19780495]
[1731166192177,0.80823266,3037.5,3037.1,1.60805669]
[1731166192326,0.80823266,3037.5,3037.4,0.19780495]
[1731166192526,0.80823266,3037.5,3037.1,1.60805669]
[1731166192725,0.80823266,3037.5,3037.4,0.19780495]
[1731166193269,0.80823266,3037.5,3037.1,1.60805669]
[1731166193419,0.80823266,3037.5,3037.4,0.19780495]
[1731166193863,0.80823266,3037.5,3037.1,1.60805669]
[1731166194032,0.80823266,3037.5,3037.4,0.19780495]
[1731166194724,0.80823266,3037.5,3037.1,1.60805669]
[1731166194921,0.80823266,3037.5,3037.4,0.19780495]
[1731166195124,0.80823266,3037.5,3037.1,1.60805669]
[1731166195367,0.80823266,3037.5,3037.4,0.19780495]
[1731166195579,0.80823266,3037.5,3037.1,1.60805669]
[1731166195735,0.80823266,3037.5,3037.4,0.19780495]
[1731166196056,0.80823266,3037.5,3037.1,1.60805669]
[1731166196261,0.80823266,3037.5,3037.4,0.19780495]
[1731166196467,0.80823266,3037.5,3037.1,1.60805669]
[1731166196654,0.80823266,3037.5,3037.4,0.19780495]
[1731166196962,0.80823266,3037.5,3037.1,1.60805669]
[1731166197141,0.80823266,3037.5,3037.4,0.19780495]
[1731166197321,0.80823266,3037.5,3037.1,1.60805669]
[1731166197529,0.80823266,3037.5,3037.4,0.19780495]
[1731166197765,0.80823266,3037.5,3037.1,1.60805669]
[1731166197965,0.80823266,3037.5,3037.4,0.19780495]
[1731166198166,0.80823266,3037.5,3037.1,1.60805669]
[1731166198332,0.80823266,3037.5,3037.4,0.19780495]
[1731166199169,0.80823266,3037.5,3037.1,1.60805669]
[1731166199463,0.80823266,3037.5,3037.4,0.19780495]
[1731166199669,0.80823266,3037.5,3037.1,1.60805669]
[1731166199827,0.00893266,3037.5,3037.4,0.19780495]
[1731166202065,0.80823266,3037.5,3037.4,0.19780495]
[1731166203234,0.01,3037.6,3037.4,0.19780495]
[1731166205031,0.7993,3037.7,3037.5,1.26498249]
[1731166205388,0.01893266,3037.8,3037.5,1.26498249]
[1731166206194,0.01,3037.8,3037.5,1.26498249]
[1731166206757,0.01,3037.8,3037.6,0.17670071]
[1731166207379,0.01,3037.8,3037.4,0.19780495]
[1731166208362,0.01,3037.8,3037.5,1.26498249]
[1731166208996,0.01,3037.8,3037.5,1.35548249]
[1731166209699,0.01,3037.8,3037.5,3.00178249]
[1731166210192,0.01,3038.0,3037.7,1.26498249]
[1731166210398,0.01,3038.0,3037.9,1.26498249]
[1731166210759,0.01,3038.0,3037.7,1.26498249]
[1731166210978,0.01,3038.0,3037.7,1.56516074]
[1731166215200,0.01893266,3038.2,3037.7,1.56516074]
[1731166216198,0.01893266,3038.2,3037.9,1.26498249]
[1731166216401,0.01,3038.2,3037.9,1.26498249]
[1731166216901,0.01,3038.2,3037.9,1.35548249]
[1731166217370,0.01,3038.2,3038.0,0.19729262]
[1731166219169,0.01,3038.2,3037.7,1.65566074]
[1731166219496,0.01,3038.2,3037.8,0.49561444]
[1731166219697,0.01,3038.2,3037.8,0.69307782]
[1731166220283,0.01,3038.2,3037.9,1.26498249]
[1731166220496,0.01,3038.2,3038.0,0.19729262]
[1731166224218,0.01,3038.3,3038.1,0.06582683]
[1731166224367,0.00893266,3038.8,3038.2,1.26498249]
[1731166224701,0.00893266,3039.0,3038.7,1.26498249]
[1731166225075,0.00893266,3039.0,3038.8,0.1965928]
[1731166225897,0.00893266,3039.0,3038.9,1.26498249]
[1731166226059,0.00893266,3039.0,3038.9,1.46148996]
[1731166227100,0.00893266,3039.0,3038.9,0.19650747]
[1731166227605,0.00893266,3039.0,3038.7,1.26498249]
[1731166227764,0.00893266,3039.0,3038.9,0.19650747]
[1731166227970,0.00893266,3039.0,3038.8,0.1965928]
[1731166228279,0.00893266,3039.0,3038.9,0.19650747]
[1731166228494,0.00893266,3039.0,3038.7,1.26498249]
[1731166228681,0.00893266,3039.0,3038.8,0.1965928]
[1731166229612,0.01,3038.9,3038.8,0.1965928]
[1731166230805,0.00893266,3039.0,3038.8,0.1965928]
[1731166230991,0.01,3038.9,3038.8,0.1965928]
[1731166231771,0.8283,3039.3,3038.8,0.35290455]
[1731166232003,0.00893266,3039.5,3039.1,1.26498249]
[1731166232201,0.00893266,3039.5,3038.8,0.2870928]
[1731166232202,0.00893266,3039.5,3039.3,1.26498249]
[1731166232505,0.00893266,3039.5,3039.4,0.19557198]
[1731166233771,0.00893266,3039.5,3039.4,0.28607198]
[1731166234119,0.00893266,3039.5,3039.4,0.19557198]
[1731166235919,0.01,3039.6,3039.4,0.19557198]
[1731166236091,0.01,3039.6,3039.5,1.26498249]
[1731166236299,0.01,3039.6,3039.5,1.46036744]
[1731166237036,0.01,3039.6,3039.5,0.19538495]
[1731166237196,0.01,3039.6,3038.8,1.26498249]
[1731166237197,0.84843266,3039.6,3038.8,1.26498249]
[1731166237394,0.8295,3039.2,3038.8,1.26498249]
[1731166237719,0.8295,3039.2,3038.9,0.19577796]
[1731166237926,0.8295,3039.2,3038.9,0.51535576]
[1731166238229,0.8295,3039.2,3038.9,0.3195778]
[1731166238385,0.8295,3039.2,3039.0,0.19569266]
[1731166238897,0.8295,3039.2,3039.1,0.19560737]
[1731166239222,0.8295,3039.2,3038.8,1.26498249]
[1731166239599,0.8295,3039.2,3038.9,0.19577796]
[1731166244043,0.83843266,3039.2,3039.0,1.26498249]
[1731166244202,0.83843266,3039.2,3039.1,0.19560737]
[1731166244401,0.8295,3039.2,3039.1,0.19560737]
[1731166244598,0.01,3039.4,3039.1,0.19560737]
[1731166244826,0.01,3039.4,3039.2,1.26498249]
[1731166245137,0.8295,3039.5,3039.2,1.26498249]
[1731166245138,0.01,3039.3,3039.2,1.26498249]
[1731166245501,0.01,3039.5,3039.2,1.26498249]
[1731166245838,0.01,3039.3,3039.2,1.26498249]
[1731166246422,0.01,3039.5,3039.2,1.26498249]
[1731166248400,0.01,3039.5,3039.4,1.26498249]
[1731166248828,0.7798,3039.7,3039.4,1.26498249]
[1731166249031,0.01,3039.7,3039.6,1.26498249]
[1731166249903,0.01,3039.9,3039.6,1.26498249]
[1731166250763,0.01,3039.9,3039.7,0.19577443]
[1731166251415,0.01,3039.9,3039.8,1.26498249]
[1731166251653,0.01,3039.9,3039.8,1.46063867]
[1731166258839,0.01,3039.9,3039.8,0.19565618]
[1731166259051,0.01,3039.9,3039.6,1.26498249]
[1731166259372,0.01,3039.9,3039.8,0.19564816]
[1731166259536,0.01,3039.9,3039.7,0.19565569]
[1731166259736,0.01,3039.9,3039.8,0.19564816]
[1731166260139,0.01,3039.7,3039.6,0.16647546]
[1731166260335,0.00893266,3039.6,3039.0,0.0905]
[1731166260538,0.00893266,3039.6,3039.3,1.26498249]
[1731166261835,0.8004,3039.7,3039.5,1.26498249]
[1731166262459,0.01,3039.7,3039.5,1.26498249]
[1731166265781,0.01,3039.7,3039.6,0.19546949]
[1731166266666,0.01,3039.9,3039.6,0.38074227]
[1731166266964,0.01,3039.9,3039.7,1.26498249]
[1731166267368,0.01,3039.9,3039.8,0.19529895]
[1731166267938,0.79933266,3040.0,3039.8,0.19529895]
[1731166268183,0.01,3039.9,3039.8,0.19529895]
[1731166268558,0.01,3040.1,3039.7,1.26498249]
[1731166268744,0.76513266,3040.2,3039.9,1.26498249]
[1731166268943,0.01,3040.1,3039.9,1.26498249]
[1731166269246,0.76513266,3040.2,3040.0,0.19539989]
[1731166269472,0.01,3040.1,3040.0,0.19539989]
[1731166270349,0.01,3040.3,3040.0,0.19539989]
[1731166270690,0.01,3040.3,3040.1,1.26498249]
[1731166270979,0.01,3040.3,3040.1,1.46022926]
[1731166271790,0.01893266,3040.3,3040.1,0.19524677]
[1731166272092,0.00893266,3040.0,3039.4,1.26498249]
[1731166272387,0.01,3039.7,3039.6,1.26498249]
[1731166275904,0.01,3039.7,3039.4,1.26498249]
[1731166276103,0.01,3039.7,3039.3,1.26498249]
[1731166276104,0.00893266,3039.6,3039.3,1.26498249]
[1731166278004,0.01,3039.7,3039.5,1.26498249]
[1731166279273,0.01,3039.7,3039.2,0.34244399]
[1731166279274,0.8118,3039.6,3039.2,0.34244399]
[1731166279478,0.8118,3039.6,3039.4,1.26498249]
[1731166280782,0.8118,3039.6,3039.5,0.1955281]
[1731166285074,0.01,3039.7,3039.5,0.1955281]
[1731166285276,0.01,3039.7,3039.6,1.26498249]
[1731166285612,0.01,3039.7,3039.6,1.46042531]
[1731166287111,0.01,3039.7,3039.6,1.90646784]
[1731166288400,0.01,3039.9,3039.6,1.90646784]
[1731166288586,0.01,3039.9,3039.8,1.26498249]
[1731166289024,0.01,3039.9,3039.8,1.46035658]
[1731166290577,0.7636,3040.2,3039.8,1.46035658]
[1731166290775,0.01,3040.3,3040.1,1.26498249]
[1731166291211,0.01893266,3040.3,3040.2,0.19495858]
[1731166291831,0.01,3040.1,3039.9,1.26498249]
[1731166292794,0.01,3040.3,3040.0,0.0905]
[1731166293019,0.01,3040.3,3040.2,1.26498249]
[1731166295207,0.80333266,3040.5,3040.2,1.26498249]
[1731166295393,0.01,3040.3,3040.2,1.26498249]
[1731166295830,0.01,3040.3,3040.2,1.45990714]
[1731166296234,0.01,3040.5,3040.2,1.45990714]
[1731166296597,0.01,3040.3,3040.2,1.45990714]
[1731166296997,0.01,3040.5,3040.2,1.45990714]
[1731166297423,0.01,3040.7,3040.4,1.35548249]
[1731166297609,0.01,3040.7,3040.6,1.26498249]
[1731166298131,0.01,3040.7,3040.6,1.45963407]
[1731166298899,0.01,3040.7,3040.6,0.19465158]
[1731166299224,0.01,3040.7,3040.4,1.26498249]
[1731166299538,0.01,3040.7,3040.5,0.1947368]
[1731166300043,0.01893266,3040.7,3040.5,0.1947368]
[1731166300443,0.01893266,3040.7,3040.5,1.6463]
[1731166300747,0.01893266,3040.7,3040.6,0.19465158]
[1731166301311,0.01893266,3040.7,3040.6,0.50524499]
[1731166301640,0.01,3040.7,3040.6,0.50524499]
[1731166301999,0.01,3040.7,3040.6,1.77022748]
[1731166303042,0.01893266,3040.9,3040.6,1.77022748]
[1731166303902,0.01,3040.7,3040.6,1.77022748]
[1731166305928,0.81233266,3040.7,3040.6,0.19465158]
[1731166306532,0.01,3040.7,3040.6,0.19465158]
[1731166308852,0.01893266,3040.7,3040.6,0.19465158]
[1731166309365,0.81233266,3040.7,3040.6,0.19465158]
[1731166310525,0.80233266,3040.7,3040.6,0.19465158]
[1731166310740,0.81233266,3040.7,3040.6,0.19465158]
[1731166310950,0.80233266,3040.7,3040.6,0.19465158]
[1731166311132,0.81233266,3040.7,3040.6,0.19465158]
[1731166311630,0.00893266,3040.7,3040.6,0.19465158]
[1731166311835,0.01893266,3040.7,3040.6,0.50524499]
[1731166313446,0.01,3040.7,3040.6,0.50524499]
[1731166313943,0.82493266,3040.9,3040.6,0.50524499]
[1731166313944,0.00893266,3040.9,3040.6,4.77022748]
[1731166314278,0.00893266,3040.9,3040.8,1.26498249]
[1731166314459,0.00893266,3040.9,3040.8,1.45946363]
[1731166314633,0.00893266,3040.9,3040.8,1.93646933]
[1731166315647,0.01,3041.2,3040.8,1.93646933]
[1731166315837,0.01893266,3041.2,3040.8,1.93646933]
[1731166316239,0.01893266,3041.2,3040.8,2.00223764]
[1731166316536,0.01,3041.2,3041.0,1.26498249]
[1731166316765,0.01893266,3041.2,3041.0,1.26498249]
[1731166316972,0.01893266,3041.2,3041.1,0.19422554]
[1731166317177,0.01,3041.2,3041.1,0.19422554]
[1731166317872,0.82620461,3041.5,3041.1,0.25998742]
[1731166318073,0.82620461,3041.5,3041.2,1.26498249]
[1731166318292,0.01893266,3041.5,3041.3,0.19405516]
[1731166318668,0.01893266,3041.5,3041.2,1.26498249]
[1731166318880,0.01893266,3041.5,3041.3,0.19405516]
[1731166319177,0.00893266,3041.5,3041.4,1.26498249]
[1731166319384,0.00893266,3041.5,3041.4,1.45895247]
[1731166319764,0.01893266,3041.7,3041.4,1.45895247]
[1731166319971,0.01893266,3041.7,3041.6,1.26498249]
[1731166320169,0.01,3041.7,3041.6,1.26498249]
[1731166320498,0.01,3041.7,3041.6,1.45862961]
[1731166320789,0.01,3042.1,3041.7,0.0993]
[1731166321086,0.01,3042.1,3042.0,1.26498249]
[1731166321503,0.00893266,3042.2,3042.0,2.92284097]
[1731166322765,0.01893266,3042.5,3042.1,0.06573948]
[1731166322968,0.01,3042.3,3042.1,0.06573948]
[1731166323198,1.47887931,3042.7,3042.2,0.5912943]
[1731166323199,0.65394665,3042.7,3042.2,0.5912943]
[1731166323354,0.01,3042.7,3042.4,2.72953445]
[1731166323554,0.01,3043.1,3042.4,2.72953445]
[1731166323879,0.01,3043.1,3042.7,2.82883445]
[1731166324198,0.01,3043.1,3042.8,0.19249903]
[1731166324354,0.82493266,3043.3,3042.8,0.49463238]
[1731166324555,0.82493266,3043.3,3042.8,0.30213335]
[1731166324866,0.82493266,3043.3,3042.9,0.19243982]
[1731166325053,0.82493266,3043.3,3043.0,0.06571811]
[1731166325054,0.01,3043.3,3043.0,0.06571811]
[1731166325251,0.01893266,3043.9,3043.3,3.0]
[1731166325455,0.01,3043.7,3043.4,0.76501881]
[1731166326189,0.01,3043.7,3043.4,0.19206536]
[1731166326403,0.01893266,3043.9,3043.4,0.19206536]
[1731166327055,0.00893266,3044.1,3043.5,0.065706]
[1731166327255,0.01,3044.2,3043.8,3.0]
[1731166327491,0.01,3044.2,3043.9,0.25706739]
[1731166329156,0.01,3044.2,3043.9,0.19136934]
[1731166329358,0.01,3044.2,3043.7,3.0]
[1731166329597,0.01,3044.2,3044.0,0.19155541]
[1731166329798,0.01,3044.2,3043.9,2.72953445]
[1731166330100,0.01,3044.2,3044.1,0.0993]
[1731166330460,0.01,3044.2,3044.1,0.29077039]
[1731166332582,0.01,3044.2,3044.1,0.19147039]
[1731166343506,0.01,3044.2,3044.1,0.35646814]
[1731166344215,0.1502842,3044.3,3044.1,0.35646814]
[1731166344506,0.1502842,3044.3,3044.2,0.20027681]
[1731166344720,0.1402842,3044.3,3044.2,0.20027681]
[1731166345013,0.1402842,3044.3,3044.2,0.39166218]
[1731166345195,0.1402842,3044.3,3044.2,3.12119663]
[1731166345503,0.7798,3045.2,3044.3,3.0]
[1731166345504,0.00033266,3045.2,3044.3,3.0]
[1731166345712,0.00033266,3045.2,3044.4,0.81326501]
[1731166346269,3.28237,3046.6,3044.4,0.81326501]
[1731166346270,0.645335,3046.3,3045.2,3.0993]
[1731166346468,0.1402842,3047.4,3045.1,2.72953445]
[1731166346469,0.01,3046.6,3045.4,2.82883445]
[1731166346769,0.01,3046.6,3045.4,0.0993]
[1731166346972,0.7798,3046.7,3045.4,0.0993]
[1731166347311,0.7798,3046.7,3045.2,2.72953445]
[1731166347312,0.7798,3046.7,3045.7,0.0993]
[1731166347714,0.7798,3046.7,3045.8,0.1898567]
[1731166348011,0.7798,3046.7,3045.9,0.06564768]
[1731166348229,0.7798,3046.7,3045.9,0.25541946]
[1731166348516,0.7798,3046.7,3045.9,0.18977178]
[1731166348717,0.7798,3046.7,3045.7,0.0993]
[1731166348871,0.01,3047.2,3045.5,3.03946445]
[1731166348872,0.7798,3047.0,3046.1,2.72953445]
[1731166349069,0.7798,3047.0,3046.2,3.0656419]
[1731166349310,0.7798,3047.0,3046.2,3.25542976]
[1731166349528,0.7798,3047.0,3046.2,0.18978786]
[1731166349895,0.7798,3047.0,3046.3,0.1899399]
[1731166350092,0.7798,3047.0,3045.9,3.1093]
[1731166350093,0.7798,3047.0,3046.4,0.06564145]
[1731166350321,0.7798,3047.0,3046.5,0.18977009]
[1731166350513,0.1402842,3047.4,3046.6,0.0993]
[1731166350726,0.1402842,3047.4,3046.7,0.18960031]
[1731166351894,0.1402842,3047.4,3046.7,3.24802479]
[1731166352116,0.1402842,3047.4,3046.8,3.06562987]
[1731166352351,0.1402842,3047.4,3046.9,0.18953217]
[1731166352530,0.1402842,3047.4,3047.0,0.06562674]
[1731166353052,0.1402842,3047.4,3047.1,0.18919324]
[1731166353350,0.1402842,3047.4,3047.2,0.16492414]
[1731166353554,0.1402842,3047.4,3047.2,0.35403252]
[1731166354063,0.1402842,3047.4,3047.2,0.28840838]
[1731166354268,0.1402842,3047.4,3047.3,0.32884084]
[1731166354548,0.1402842,3047.4,3047.3,0.51786437]
[1731166355255,0.1402842,3047.4,3047.3,2.16416437]
[1731166356155,0.1402842,3047.4,3047.3,2.22978386]
[1731166356344,0.1402842,3047.4,3047.3,2.16416437]
[1731166356527,0.1402842,3047.4,3047.3,1.83532353]
[1731166359579,0.1402842,3047.4,3047.3,4.94462353]
[1731166359888,0.00433495,3047.8,3047.7,0.0993]
[1731166360092,0.00433495,3047.8,3047.7,5.89443401]
[1731166360306,3.01,3049.7,3048.2,0.01]
[1731166360307,0.8166,3049.3,3048.2,0.01]
[1731166360456,0.8166,3049.3,3048.2,2.73953445]
[1731166360655,0.8166,3049.3,3048.3,3.47202493]
[1731166360864,0.8166,3049.3,3048.3,0.47202493]
[1731166361092,0.8166,3049.3,3048.3,0.18814149]
[1731166361456,0.8166,3049.3,3048.0,3.0]
[1731166362096,0.8166,3049.3,3048.1,0.18831108]
[1731166362255,0.8166,3049.3,3048.2,0.06560037]
[1731166362457,0.8166,3049.3,3048.1,0.18831108]
[1731166362656,0.8166,3049.3,3048.3,0.18814149]
[1731166362997,0.8166,3049.3,3048.4,0.1880567]
[1731166363322,0.8166,3049.3,3048.5,0.06560039]
[1731166363607,0.8166,3049.3,3048.5,0.18797191]
[1731166363891,0.8166,3049.3,3048.1,0.59178455]
[1731166364098,0.8166,3049.3,3048.6,0.18788713]
[1731166364261,0.8166,3049.3,3048.1,0.59178455]
[1731166364459,0.8166,3049.3,3048.7,0.18780236]
[1731166364701,0.8166,3049.3,3048.2,0.35917846]
[1731166364859,0.8166,3049.3,3048.8,0.18771759]
[1731166365367,0.8166,3049.3,3048.2,0.35917846]
[1731166365772,0.8166,3049.3,3048.3,0.18814149]
[1731166367425,0.8166,3049.3,3047.8,0.0993]
[1731166367589,0.8166,3049.3,3048.4,0.1880567]
[1731166367793,0.8166,3049.3,3047.9,0.30993]
[1731166368210,0.55,3049.2,3048.0,0.18839589]
[1731166368407,0.8091,3049.1,3048.0,0.18839589]
[1731166368734,0.463865,3049.0,3048.0,0.18839589]
[1731166368917,0.8091,3049.1,3048.0,0.18839589]
[1731166369118,0.8091,3049.1,3047.3,4.37583445]
[1731166369119,0.8091,3048.6,3047.3,1.6463]
[1731166369432,0.8091,3048.6,3047.4,0.18890485]
[1731166370003,0.8091,3048.6,3047.3,1.6463]
[1731166370208,0.8091,3048.6,3047.5,0.18882001]
[1731166370403,0.8057,3048.4,3047.4,0.18890485]
[1731166370610,0.8057,3048.4,3047.3,1.6463]
[1731166370611,0.8057,3048.4,3047.6,0.18873517]
[1731166370924,0.8057,3048.4,3047.7,0.18865034]
[1731166371232,0.8057,3048.4,3047.3,1.6463]
[1731166371406,0.8057,3048.2,3047.3,1.6463]
[1731166372092,0.8057,3048.2,3047.4,0.18890485]
[1731166374299,0.8057,3048.2,3047.4,0.25452886]
[1731166374493,0.8057,3048.2,3047.4,0.18890485]
[1731166377178,1.3054,3048.2,3047.4,0.18890485]
[1731166377381,0.7554,3048.0,3047.4,0.18890485]
[1731166377882,0.7554,3049.1,3047.7,2.72953445]
[1731166378050,0.7554,3049.1,3047.8,3.0]
[1731166378249,0.7554,3049.1,3047.8,3.18861721]
[1731166378453,0.7554,3049.1,3047.9,0.59181517]
[1731166378792,0.7554,3049.1,3048.0,0.18844757]
[1731166379005,0.7654,3049.1,3048.0,0.18844757]
[1731166379301,0.7554,3048.8,3047.5,3.0]
[1731166379759,0.7554,3048.8,3047.6,0.18878686]
[1731166380285,0.7554,3048.6,3047.6,0.18878686]
[1731166380491,0.7554,3048.6,3047.7,0.38449273]
[1731166380857,0.7554,3048.6,3047.8,0.18861721]
[1731166382273,0.7554,3048.6,3047.8,0.25423152]
[1731166382661,0.7554,3048.6,3047.8,0.18861721]
[1731166383379,0.7554,3048.6,3047.2,3.0]
[1731166383596,0.7554,3048.9,3047.9,0.18853239]
[1731166383759,0.66284461,3049.2,3047.8,3.0]
[1731166383760,1.41824461,3049.2,3048.1,3.0]
[1731166383962,0.7554,3049.2,3048.2,0.18827796]
[1731166384362,0.7554,3049.2,3048.2,3.0]
[1731166384611,0.7554,3049.2,3048.3,0.18819316]
[1731166385364,0.7554,3049.2,3048.4,0.25370544]
[1731166385565,0.66979776,3049.3,3048.4,0.18810837]
[1731166385897,0.66979776,3049.3,3048.5,0.0993]
[1731166386104,0.66979776,3049.3,3048.5,0.28732358]
[1731166386302,0.66979776,3049.3,3048.5,0.0993]
[1731166386503,0.66979776,3049.3,3048.6,0.1879388]
[1731166387177,0.66979776,3049.3,3048.2,0.0993]
[1731166387703,0.66979776,3049.3,3048.3,0.18819316]
[1731166387904,1.08737098,3049.3,3048.3,0.18819316]
[1731166388092,1.08737098,3049.3,3048.2,0.0993]
[1731166388607,1.08737098,3049.3,3048.3,0.18819316]
[1731166388777,1.08737098,3049.3,3048.2,0.0993]
[1731166388974,1.08737098,3049.3,3048.4,0.18810837]
[1731166389189,1.08737098,3049.3,3048.2,0.0993]
[1731166389409,1.08737098,3049.3,3048.5,0.18802358]
[1731166389656,1.08737098,3049.3,3048.2,0.0993]
[1731166389826,1.08737098,3049.3,3048.6,0.1879388]
[1731166390114,1.08737098,3049.3,3048.2,0.0993]
[1731166390479,1.08737098,3049.3,3048.3,0.18819316]
[1731166390870,1.08737098,3049.3,3048.2,0.0993]
[1731166391075,1.08737098,3049.3,3048.4,0.18810837]
[1731166391312,1.08737098,3049.3,3048.2,0.0993]
[1731166391719,1.08737098,3049.3,3048.3,0.18819316]
[1731166391891,0.66979776,3049.3,3048.3,0.18819316]
[1731166392088,0.66979776,3049.3,3048.2,0.0993]
[1731166392409,0.66979776,3049.3,3048.3,0.18819316]
[1731166392712,0.66979776,3049.3,3048.2,0.0993]
[1731166393121,0.66979776,3049.3,3048.3,0.18819316]
[1731166393927,0.66979776,3049.3,3048.2,0.0993]
[1731166394301,0.66979776,3049.3,3048.3,0.18819316]
[1731166394655,0.66979776,3049.3,3048.2,0.0993]